Cogmind - Beta 17 @@@ ROGUE MODE // 2026.07.14 @ 14:44:48 // Winter2019/RPGLIKE Player: Gallgagger Result: Destroyed by P1-3CE with P1-3CE's Gatling Flakker Performance ------------- Evolutions (1) 500 Regions Visited (6) 1200 Robots Destroyed (0) 0 Value Destroyed (0) 0 Prototype IDs (0) 0 Alien Tech Used (0) 0 Bonus (507) 507 TOTAL SCORE: 2207 Bonus ------- Pacifist 200 Follower Combat Kills 7 Aligned with FarCom 300 Cogmind --------- Core Integrity 0/1300 Matter 300/300 Energy 100/100 System Corruption 3% Temperature Cool (0) Movement Core (50) Location -8/Mines Parts ------- > --- POWER (1) -------- (None) > --- PROPULSION (1) --- (None) > --- UTILITY (1) ------ (None) > --- WEAPON (1) ------- (None) > --- INVENTORY (0) ---- (None) Peak State ------------ > --- POWER ------------ (None) > --- PROPULSION ------- Flight Unit > --- UTILITY ---------- (None) > --- WEAPON ----------- (None) > --- INVENTORY -------- (None) [Rating: 1] Favorites ----------- Power None Propulsion Flight Unit Flight Unit Flight Unit Utility None Weapon None Build | -11 -10 -10 -9 -9 -9 -8 ------- Run | Yrd Mat Min Mat Min Exi Min Slots Evolved . | . . . . . . . Power . | . . . . . . . Propulsion . | . . . . . . . Utility . | . . . . . . . Weapon . | . . . . . . . Parts Attached 1 | . . 1 . . . . Power . | . . . . . . . Engine . | . . . . . . . Core . | . . . . . . . Reactor . | . . . . . . . Propulsion 1 | . . 1 . . . . Treads . | . . . . . . . Leg . | . . . . . . . Wheel . | . . . . . . . Hover . | . . . . . . . Flight 1 | . . 1 . . . . Utility . | . . . . . . . Device . | . . . . . . . Storage . | . . . . . . . Processor . | . . . . . . . Hackware . | . . . . . . . Protection . | . . . . . . . Artifact . | . . . . . . . Weapon . | . . . . . . . Energy Gun . | . . . . . . . Energy Cannon . | . . . . . . . Ballistic Gun . | . . . . . . . Ballistic Cannon . | . . . . . . . Launcher . | . . . . . . . Special Weapon . | . . . . . . . Impact Weapon . | . . . . . . . Slashing Weapon . | . . . . . . . Piercing Weapon . | . . . . . . . Special Melee Weapon . | . . . . . . . Unidentified Prototypes . | . . . . . . . Parts Lost 1 | . . . . . 1 . Power . | . . . . . . . Propulsion 1 | . . . . . 1 . Utility . | . . . . . . . Weapon . | . . . . . . . Highest Loss Streak 1 | . . . . . 1 . To Critical Strikes . | . . . . . . . Average Backups . | . . . . . . . Power . | . . . . . . . Propulsion . | . . . . . . . Utility . | . . . . . . . Weapon . | . . . . . . . Tool/Special . | . . . . . . . Unused Backups . | . . . . . . . Power . | . . . . . . . Propulsion . | . . . . . . . Utility . | . . . . . . . Weapon . | . . . . . . . Tool/Special . | . . . . . . . Average Slot Usage (%) 8 | . . 2 25 25 20 . Flight 8 | . . 2 25 25 20 . Peak Build Rating 1 | . . 1 1 1 1 . Average Rating . | . . . 1 1 . . On Entrance . | . . . 1 1 1 . Avg Prop Armor Cover (%) . | . . . . . . . Naked Turns 343 | . 24 296 . . 18 5 Heaviest Build . | . . . . . . . Greatest Support 4 | 3 3 4 4 4 4 . Greatest Overweight (x) . | . . . . . . . Average Overweight (x) . | . . . . . . . Largest Inventory Capacity . | . . . . . . . Average Capacity . | . . . . . . . Most Carried . | . . . . . . . Average Carried . | . . . . . . . Final Capacity . | . . . . . . . Final Carried . | . . . . . . . Class Distribution -------------------- 100% | Mutant Dominant Class ---------------- Mutant | -10/Materials Mutant | -10/Mines Mutant | -9/Materials Mutant | -9/Mines Mutant | -9/Exiles Mutant | -8/Mines Resources | -11 -10 -10 -9 -9 -9 -8 ----------- Run | Yrd Mat Min Mat Min Exi Min Matter Collected 131 | . . 101 . 30 . . Remotely . | . . . . . . . Salvage Created . | . . . . . . . Parts . | . . . . . . . Haulers Intercepted . | . . . . . . . Recyclers Shooed . | . . . . . . . Parts Field Recycled . | . . . . . . . Retrieved Matter . | . . . . . . . Parts Self-Destructed . | . . . . . . . Prevented . | . . . . . . . Parts Restored . | . . . . . . . Kills | -11 -10 -10 -9 -9 -9 -8 ------- Run | Yrd Mat Min Mat Min Exi Min Combat Hostiles Destroyed . | . . . . . . . Classes Destroyed . | . . . . . . . Best Kill Streak . | . . . . . . . Combat Bots Only . | . . . . . . . Max Kills in Single Turn . | . . . . . . . Gunslinging . | . . . . . . . Exploded . | . . . . . . . Melee . | . . . . . . . Uniques/NPCs Destroyed . | . . . . . . . Combat | -11 -10 -10 -9 -9 -9 -8 -------- Run | Yrd Mat Min Mat Min Exi Min Hostile Shots Fired 210 | . . 157 21 14 . 18 Missed 95 | . . 71 14 5 . 5 Hits 115 | . . 86 7 9 . 13 Projectile 115 | . . 86 7 9 . 13 AOE 2 | . . . . 2 . . Damage Taken 1388 | . 3 815 69 171 87 243 Core 1371 | . 3 809 64 167 85 243 Absorbed by Shields . | . . . . . . . Redirected to Core 67 | . . 19 17 14 17 . Core Remaining (%) 70 | 100 . 41 . . . . Volleys Fired . | . . . . . . . Largest . | . . . . . . . Hottest . | . . . . . . . Shots Fired . | . . . . . . . Gun . | . . . . . . . Cannon . | . . . . . . . Launcher . | . . . . . . . Special . | . . . . . . . Kinetic . | . . . . . . . Thermal . | . . . . . . . Explosive . | . . . . . . . Electromagnetic . | . . . . . . . Robot Hit Streak . | . . . . . . . Robot Miss Streak . | . . . . . . . Penetration Max . | . . . . . . . Secondary Targets . | . . . . . . . Shots Hit Robots . | . . . . . . . Core Hits 4 | . . 4 . . . . Critical Kills . | . . . . . . . Critical Parts Destroyed . | . . . . . . . Critical Strikes . | . . . . . . . Melee Attacks . | . . . . . . . Impact . | . . . . . . . Slashing . | . . . . . . . Piercing . | . . . . . . . Sneak Attacks . | . . . . . . . Combat Hostiles . | . . . . . . . Follow-up Attacks . | . . . . . . . Damage Inflicted 128 | . 7 99 . . 22 . Guns . | . . . . . . . Cannons . | . . . . . . . Explosions . | . . . . . . . Melee . | . . . . . . . Ramming 128 | . 7 99 . . 22 . Kinetic . | . . . . . . . Thermal . | . . . . . . . Explosive . | . . . . . . . Electromagnetic . | . . . . . . . Impact . | . . . . . . . Slashing . | . . . . . . . Piercing . | . . . . . . . Highest Corruption 3 | . . 2 . . 3 3 Average Corruption 2 | . . 2 . . 3 3 Corruption Purged . | . . . . . . . Corruption Blocked . | . . . . . . . Effects 2 | . . 1 . . 1 . Message Errors 1 | . . . . . 1 . Matter Fused 1 | . . 1 . . . . Overload Shots . | . . . . . . . Overflow Damage . | . . . . . . . Projectiles . | . . . . . . . Explosions . | . . . . . . . Melee . | . . . . . . . Knockbacks 1 | . 1 . . . . . Impact 1 | . 1 . . . . . Kinetic . | . . . . . . . Secondary . | . . . . . . . Self-Inflicted Damage 69 | . 3 44 . . 22 . Shots . | . . . . . . . Rammed 24 | . 1 23 . . . . Targets Rammed 24 | . 1 23 . . . . Kicked . | . . . . . . . Crushed . | . . . . . . . Highest Temperature . | . . . . . . . Average Temperature . | . . . . . . . Received Heat Transfer 18 | . . . 6 12 . . Siege Activations . | . . . . . . . Martial Activations . | . . . . . . . Shielding Activations . | . . . . . . . Robots Disrupted . | . . . . . . . Combat Hostiles . | . . . . . . . Robots Corrupted . | . . . . . . . Combat Hostiles . | . . . . . . . Parts Fried . | . . . . . . . Impact Corruptions . | . . . . . . . Robots Melted . | . . . . . . . Combat Hostiles . | . . . . . . . Parts Melted . | . . . . . . . Heat Transferred . | . . . . . . . Parts Sabotaged . | . . . . . . . Parts Stolen . | . . . . . . . Parts Stripped . | . . . . . . . Power Chain Reactions . | . . . . . . . Alert | -11 -10 -10 -9 -9 -9 -8 ------- Run | Yrd Mat Min Mat Min Exi Min Maximum Alert Level . | . . . . . . . Low Security (%) 100 | 100 100 100 100 100 . 100 Level 1 . | . . . . . . . Level 2 . | . . . . . . . Level 3 . | . . . . . . . Level 4 . | . . . . . . . Level 5 . | . . . . . . . High Security . | . . . . . . . Max Security . | . . . . . . . Peak Influence 140 | . 8 140 50 16 . . Initial 50 | . . . 50 11 . . Average 49 | . . 58 44 9 . . Influence Increases 299 | . 8 276 . 15 . . Destroy 0b10 Robot/C 20 | . . 20 . . . . Allied During Kill 1 | . . 1 . . . . Successful Hack 8 | . 8 . . . . . Lose Combat Pursuer 270 | . . 255 . 15 . . Influence Decreases 299 | . 8 146 100 29 16 . Entered New Map 115 | . . . 80 19 16 . Time Decay 164 | . 8 126 20 10 . . Lost Ally 20 | . . 20 . . . . Squads Dispatched 1 | . . . 1 . . . Investigation . | . . . . . . . Extermination . | . . . . . . . Reinforcement 1 | . . . 1 . . . Assault . | . . . . . . . Garrison . | . . . . . . . Intercept . | . . . . . . . Searches Triggered . | . . . . . . . Construction Impeded . | . . . . . . . Haulers Reinforced . | . . . . . . . Active Scanning Responses . | . . . . . . . Cargo Convoy Interrupts . | . . . . . . . Stealth | -11 -10 -10 -9 -9 -9 -8 --------- Run | Yrd Mat Min Mat Min Exi Min Distress Signals . | . . . . . . . Communications Jammed . | . . . . . . . Distress Signals . | . . . . . . . Times Spotted 44 | . . 26 9 7 . 2 Peak Tracking Total 9 | . . 6 8 7 9 1 Tactical Retreats 8 | . . 7 . 1 . . Traps | -11 -10 -10 -9 -9 -9 -8 ------- Run | Yrd Mat Min Mat Min Exi Min Traps Triggered . | . . . . . . . Indirectly . | . . . . . . . Trap Hack Attempts . | . . . . . . . Triggered . | . . . . . . . Disarmed . | . . . . . . . Reprogrammed . | . . . . . . . Reused . | . . . . . . . Traps Extracted . | . . . . . . . Installed . | . . . . . . . Triggered . | . . . . . . . Machines | -11 -10 -10 -9 -9 -9 -8 ---------- Run | Yrd Mat Min Mat Min Exi Min Machines Disabled 1 | . . . . . 1 . Max in Single Turn 1 | . . . . . 1 . Machines Repaired . | . . . . . . . Machines Dismantled . | . . . . . . . Machines Sabotaged . | . . . . . . . Overloaded Fab Kills . | . . . . . . . Hacking | -11 -10 -10 -9 -9 -9 -8 --------- Run | Yrd Mat Min Mat Min Exi Min Machines Accessed 2 | . 1 1 . . . . Terminals 1 | . 1 . . . . . Fabricators . | . . . . . . . Repair Stations . | . . . . . . . Recycling Units . | . . . . . . . Scanalyzers . | . . . . . . . Garrison Access . | . . . . . . . Total Hacks 3 | . 2 1 . . . . Successful 2 | . 1 1 . . . . Failed 1 | . 1 . . . . . Catastrophic 1 | . 1 . . . . . Database Lockouts . | . . . . . . . Manual 3 | . 2 . . . 1 . Terminals 2 | . 2 . . . . . Fabricators . | . . . . . . . Repair Stations . | . . . . . . . Recycling Units . | . . . . . . . Scanalyzers . | . . . . . . . Garrison Access . | . . . . . . . Terminal Hacks 2 | . 1 1 . . . . Open Door 1 | . . 1 . . . . Branch Access Points 1 | . 1 . . . . . Fabricator Hacks . | . . . . . . . Repair Station Hacks . | . . . . . . . Recycling Unit Hacks . | . . . . . . . Scanalyzer . | . . . . . . . Garrison Access Hacks . | . . . . . . . Unauthorized Hacks . | . . . . . . . Terminals . | . . . . . . . Fabricators . | . . . . . . . Repair Stations . | . . . . . . . Recycling Units . | . . . . . . . Scanalyzers . | . . . . . . . Garrison Access . | . . . . . . . Data Cores Recovered . | . . . . . . . Used . | . . . . . . . Hacking Detections 1 | . 1 . . . . . Full Trace Events . | . . . . . . . Feedback Events . | . . . . . . . Feedback Blocked . | . . . . . . . Robot Schematics Acquired . | . . . . . . . Robots Built . | . . . . . . . Authchips . | . . . . . . . Time . | . . . . . . . Total Robot Build Rating . | . . . . . . . Part Schematics Acquired . | . . . . . . . Parts Built . | . . . . . . . Authchips . | . . . . . . . Time . | . . . . . . . Total Part Build Rating . | . . . . . . . Part Studies Acquired . | . . . . . . . Parts Repaired . | . . . . . . . Time . | . . . . . . . Parts Recycled . | . . . . . . . Recycled Matter . | . . . . . . . Retrieved Matter . | . . . . . . . Retrieved Components . | . . . . . . . Parts Scanalyzed . | . . . . . . . Part Schematics Acquired . | . . . . . . . Parts Damaged . | . . . . . . . Bothacking | -11 -10 -10 -9 -9 -9 -8 ------------ Run | Yrd Mat Min Mat Min Exi Min Used RIF Installer . | . . . . . . . Robots Hacked . | . . . . . . . Non-combat . | . . . . . . . Combat . | . . . . . . . Robot Hacks Applied . | . . . . . . . Relay Couplers Released . | . . . . . . . Fabnet Peak Effective % . | . . . . . . . Robots Rewired . | . . . . . . . Allies Hacked . | . . . . . . . Hacks Repelled . | . . . . . . . Allies | -11 -10 -10 -9 -9 -9 -8 -------- Run | Yrd Mat Min Mat Min Exi Min Total Allies 1 | . . 1 . . . . Largest Group 1 | . . 1 . . . . Highest-Rated Group 31 | . . 31 . . . . Highest-Rated Ally 31 | . . 31 . . . . Total Orders . | . . . . . . . Ally Attacks 3 | . . 3 . . . . Total Damage 41 | . . 41 . . . . Kills 1 | . . 1 . . . . Allies Corrupted . | . . . . . . . Allies Melted . | . . . . . . . Intel | -11 -10 -10 -9 -9 -9 -8 ------- Run | Yrd Mat Min Mat Min Exi Min Active Infowar (turns) . | . . . . . . . Robot Analysis Total . | . . . . . . . Derelict Logs Recovered 3 | . . 2 . 1 . . Drone Launches . | . . . . . . . Drone Recoveries . | . . . . . . . Exploration | -11 -10 -10 -9 -9 -9 -8 ------------- Run | Yrd Mat Min Mat Min Exi Min Turns Passed 525 | 10 24 338 41 23 84 5 Spaces Moved 1066 | 20 46 641 102 58 199 . Core 641 | 20 46 540 . . 35 . Treads . | . . . . . . . Legs . | . . . . . . . Wheels . | . . . . . . . Hover . | . . . . . . . Flight 425 | . . 101 102 58 164 . Fastest Speed 40 | 50 50 40 40 40 40 . Average Speed 46 | 50 50 48 40 40 41 . Slowest Speed 50 | 50 50 50 40 40 50 . Overloaded Moves . | . . . . . . . Propulsion Burnouts . | . . . . . . . Robots Hopped 8 | . . 5 2 1 . . Potential Cave-ins . | . . . . . . . Cave-ins Triggered . | . . . . . . . Exploration Rate (%) 30 | 3 11 99 12 22 61 4 Regions Visited 6 Branch Regions 4 Pre-discovered Areas . | . . . . . . . Known Exits Taken 2 | . 1 . 1 . . . Unknown Exits Taken 4 | 1 . 1 . 1 1 . Scrap Searched 1 | . . 1 . . . . Spaces Dug . | . . . . . . . Terrain Destroyed . | . . . . . . . Melee . | . . . . . . . Projectile . | . . . . . . . AOE . | . . . . . . . Terrain Rammed 1 | . . . . . 1 . Walls Destroyed . | . . . . . . . Machines Disabled 1 | . . . . . 1 . Actions | -11 -10 -10 -9 -9 -9 -8 --------- Run | Yrd Mat Min Mat Min Exi Min Total 1086 | 19 46 662 99 56 199 5 Wait 6 | . . 1 . . . 5 Move 1044 | 19 45 630 97 55 198 . Hop 8 | . . 5 2 1 . . Pick Up . | . . . . . . . Fast Attach 1 | . . 1 . . . . Attach . | . . . . . . . Detach . | . . . . . . . Swap . | . . . . . . . Drop . | . . . . . . . Fire . | . . . . . . . Melee . | . . . . . . . Ram 25 | . 1 23 . . 1 . Kick . | . . . . . . . Crush . | . . . . . . . Escape Stasis . | . . . . . . . Rewire . | . . . . . . . Trap . | . . . . . . . Miscellaneous 2 | . . 2 . . . . Route ------- -11/Scrapyard -10/Materials -10/Mines (discovered 3 exits: [*Mat x2] / [*Sub]) -9/Materials -9/Mines (discovered 2 exits: [*Mat] / *Exi) -9/Exiles (discovered 2 exits: [*Min x2]) -8/Mines History --------- Turn | Location | Event 3 | -11/Scrapyard | Discovered new exit (range 15) 11 | -11/Scrapyard | Entered Materials 27 | -10/Materials | Discovered new exit (range 16) 29 | -10/Materials | Identified exit to Mines 35 | -10/Materials | Entered Mines 89 | -10/Mines | Met a Derelict who couldn't figure out how to use a Trap Extractor 107 | -10/Mines | Discovered new exit (range 5) 117 | -10/Mines | Received a Mining Laser from a helpful Derelict 150 | -10/Mines | Core integrity fell below 50% 173 | -10/Mines | Learned Materials garrison access intel 187 | -10/Mines | Learned location of 1 exit from Materials 244 | -10/Mines | Discovered new exit (range 9) 250 | -10/Mines | Core integrity fell below 20% 305 | -10/Mines | Build established: Mutant 321 | -10/Mines | Discovered new exit (range 10) 373 | -10/Mines | Entered Materials 374 | -9/Materials | Identified exit to Mines 374 | -9/Materials | Core integrity fell below 50% 375 | -9/Materials | Reached level 2 414 | -9/Materials | Entered Mines 415 | -9/Mines | Assembled infested the area 420 | -9/Mines | Assisted by a Guerilla fighting off Assembled 425 | -9/Mines | Discovered new exit (range 5) 429 | -9/Mines | Learned location of 1 exit from Materials 435 | -9/Mines | Deemed a non-threat by the Exiles lab entrance 436 | -9/Mines | Discovered new exit (range 5) 437 | -9/Mines | Entered Exiles 444 | -9/Exiles | Discovered new exit (range 15) 448 | -9/Exiles | Met 8R-AWN 454 | -9/Exiles | Met EX-HEX 466 | -9/Exiles | Met EX-BIN 472 | -9/Exiles | Reached level 3 472 | -9/Exiles | Aligned with FarCom system 472 | -9/Exiles | Given EX-Vault access code 481 | -9/Exiles | Opened EX-Vault 487 | -9/Exiles | Warned to stay clear of 0b10 Research branches 499 | -9/Exiles | Met EX-DEC 504 | -9/Exiles | Attacked by the Exiles 504 | -9/Exiles | Core integrity fell below 20% 517 | -9/Exiles | Discovered new exit (range 10) 521 | -9/Exiles | Entered Mines 522 | -8/Mines | P1-3CE came to Exiles' defense 526 | -8/Mines | Destroyed by P1-3CE with P1-3CE's Gatling Flakker Last Messages --------------- your atomic chain! 00501_ EX-DEC: "Oops, I hope HEX didn't hear that..." 00503_ Slammed into Machine. 00503_ Machine disabled. 00503_ Flight Unit destroyed. 00503_ System corrupted by crushing effect (+3). 00503_ Destabilizing: Core damaged (-26). 00503_ Destabilizing: Core damaged (-39). 00504_ EXILES: Hostile robot within lab perimeter. Defensive protocols time, folks! 00517_ EXIT=FOUND 00521_ 5EI%<>RIZVM46<0OU6ZTKJD WH7JMY A strange signal echoes through the mines. LOCATION=UNKNOWN GOAL=ESCAPE 00522_ P1-3CE: "I came as fast as I could... Wait, it was you!" 00522_ K-01 Serf collects debris. 00522_ Knocked back. 00523_ K-01 Serf collects debris. 00524_ K-01 Serf cleans the Terminal. Map ----- +----------------------------------------------------+ | ??????????????????????????????????????? | | ??????????????????????????????????????? | | ??????????????????????????????????????? | | ??????????????????????????????????????? | | ??????????????????????????????????????? | | ??????????????????????????????????????? | | ??????????????????????????????????????? | | ??????????????????????????????????????? | | ??????????????????????????????????????? | | ??????????????????????????????????????? | | ??????????????????????????? #?????????? | | ?????????????????????????? ##???????? | | ?????????????????????????? ??????? | | ?????????????????????????? ??????? | | ?????????????????????????? ???????? | | ??????????????????????????? ???????? | | ??????????????????????????? ???????? | | ??????????????????????????? ????????? | | ??????????????????????????? ????????? | | ???????????????????????????# #????????? | | ???????????????????????????# #????????? | | ????????????????????????#### #####????? | | ????????????????????????# #????? | | ????????????????????????# k #????? | | ????????????????????????# #????? | | ????????????????????????#@ M #????? | | ????????????????????????# k#????? | | ????????????????????????; T#???? | | ????????????????????????# ##???? | | ????????????????????????##;#######????? | | ?????????????????????????###??????????? | | ??????????????????????????????????????? | | ??????????????????????????????????????? | | ??????????????????????????????????????? | | ??????????????????????????????????????? | | ??????????????????????????????????????? | | ??????????????????????????????????????? | | ??????????????????????????????????????? | | ??????????????????????????????????????? | | ??????????????????????????????????????? | | ??????????????????????????????????????? | | ??????????????????????????????????????? | | ??????????????????????????????????????? | | ??????????????????????????????????????? | | ??????????????????????????????????????? | | ??????????????????????????????????????? | | ??????????????????????????????????????? | | ??????????????????????????????????????? | | ??????????????????????????????????????? | | ??????????????????????????????????????? | +----------------------------------------------------+ Best States ------------- Heat Dissipation 25 Energy Generation 5 Energy Capacity 100 Matter Stores 300 Matter Capacity 300 Sight Range 16 Terrain Scan Density 10 Evasion (%) 62 Item Schematics ----------------- None Robot Schematics ------------------ None Fabricated ------------ Nothing Repaired ---------- Nothing Studied --------- None Alien Tech Used ----------------- None Achievements -------------- None Challenges ------------ None RPGLIKE | -11 -10 -10 -9 -9 -9 -8 --------- Run | Yrd Mat Min Mat Min Exi Min Levels Raised 2 | . . . 1 . 1 . XP Earned 6593 | 3000 40 703 1500 500 350 500 XP Spent 1260 | . . 1260 . . . . Upgrades 14 | . . 14 . . . . Core Integrity 14 | . . 14 . . . . Protomatter Created . | . . . . . . . Integrity Restored 48 | . . 48 . . . . Core 48 | . . 48 . . . . Protomatter Decayed 61 | . . 61 . . . . Game ------ Seed GravmagFocalBox Manual? 0 Play Time 00:04:46 Cumulative 661.5 hours Start 2026.07.14 @ 14:40:09 End 2026.07.14 @ 14:44:48 Sessions 1 Manual Loads 0 Difficulty Rogue Special Mode Winter2019/RPGLIKE Game No. 282 Rogue 128 Adventurer 154 Explorer 0 Win Type - Total 22 Types 4/5/4/3/2/1/0/1/1/1 Lore% 95 Gallery% 88 Achievement% 68 Wizard Run 0 Options --------- Layout 0 ASCII 0 Keyboard 0 Movement Numpad Keybinds 0 Fullscreen 2 Font 18/SmallcapsGlow Map View 76x50 Zoom Use 0% Tactical HUD 1 Map Filters NONE Filters NONE Steam 1 RUN: 29518aa5-2426-4b84-abc2-5a9b7c395099